[Event "*** Titled Tuesday Blitz"]
[Site "Chess.com"]
[Date "2020.05.19"]
[Round "5"]
[White "kot60"]
[Black "doons21"]
[Result "0-1"]
[WhiteElo "2382"]
[BlackElo "2549"]
[TimeControl "180+1"]
[EndTime "12:57:29 PDT"]
[Termination "doons21 won on time"]

1. e4 {[%clk 0:02:51.7]} 1... e6 {[%clk 0:02:59.7]} 2. d4 {[%clk 0:02:50.7]}
2... d5 {[%clk 0:03:00]} 3. Nd2 {[%clk 0:02:49.9]} 3... Nc6 {[%clk 0:02:59.8]}
4. exd5 {[%clk 0:02:48.9]} 4... Nxd4 {[%clk 0:02:42.1]} 5. dxe6 {[%clk
0:02:47.9]} 5... Bxe6 {[%clk 0:02:39.3]} 6. Ngf3 {[%clk 0:02:46.4]} 6... Nf6
{[%clk 0:02:29.4]} 7. c3 {[%clk 0:02:41.7]} 7... Nxf3+ {[%clk 0:02:05.2]} 8.
Qxf3 {[%clk 0:02:40.7]} 8... c6 {[%clk 0:02:05.5]} 9. Ne4 {[%clk 0:02:25.5]}
9... Nxe4 {[%clk 0:02:04.3]} 10. Qxe4 {[%clk 0:02:24.7]} 10... Qd5 {[%clk
0:02:02.3]} 11. Qxd5 {[%clk 0:02:18.2]} 11... Bxd5 {[%clk 0:02:02.3]} 12. Be3
{[%clk 0:02:12.7]} 12... Be7 {[%clk 0:01:55.4]} 13. f3 {[%clk 0:01:48.6]} 13...
O-O {[%clk 0:01:52.1]} 14. Bd3 {[%clk 0:01:47.5]} 14... Bh4+ {[%clk 0:01:46.5]}
15. Bf2 {[%clk 0:01:29.3]} 15... Rfe8+ {[%clk 0:01:45.7]} 16. Kf1 {[%clk
0:01:29.2]} 16... Bf6 {[%clk 0:01:40.3]} 17. a3 {[%clk 0:01:27.4]} 17... a5
{[%clk 0:01:31.2]} 18. Rd1 {[%clk 0:01:15.3]} 18... Bb3 {[%clk 0:01:23.9]} 19.
Rd2 {[%clk 0:01:04.3]} 19... Bg5 {[%clk 0:01:16.2]} 20. Re2 {[%clk 0:01:02.3]}
20... Bc1 {[%clk 0:00:57.5]} 21. Bd4 {[%clk 0:00:40.7]} 21... a4 {[%clk
0:00:49.5]} 22. Kf2 {[%clk 0:00:32.6]} 22... Rxe2+ {[%clk 0:00:47.2]} 23. Bxe2
{[%clk 0:00:29.3]} 23... Bxb2 {[%clk 0:00:47.5]} 24. Re1 {[%clk 0:00:24.1]}
24... Re8 {[%clk 0:00:36.4]} 25. Bd3 {[%clk 0:00:23.6]} 25... Rxe1 {[%clk
0:00:35.7]} 26. Kxe1 {[%clk 0:00:24.5]} 26... Bxa3 {[%clk 0:00:36]} 27. Kd2
{[%clk 0:00:22.5]} 27... Bb2 {[%clk 0:00:33.6]} 28. Bc2 {[%clk 0:00:21.6]} 28...
b5 {[%clk 0:00:25.7]} 29. Bc5 {[%clk 0:00:20]} 29... f6 {[%clk 0:00:17.6]} 30.
Bb4 {[%clk 0:00:17.9]} 30... Kf7 {[%clk 0:00:17.2]} 31. Bxb3+ {[%clk 0:00:13.8]}
31... axb3 {[%clk 0:00:16.9]} 32. Kd3 {[%clk 0:00:14]} 32... Ke6 {[%clk
0:00:16.8]} 33. Bf8 {[%clk 0:00:13]} 33... g6 {[%clk 0:00:16.5]} 34. g4 {[%clk
0:00:13.9]} 34... Kd5 {[%clk 0:00:15.9]} 35. h4 {[%clk 0:00:13.5]} 35... c5
{[%clk 0:00:16.2]} 36. h5 {[%clk 0:00:13.3]} 36... c4+ {[%clk 0:00:17.1]} 37.
Kd2 {[%clk 0:00:13.3]} 37... gxh5 {[%clk 0:00:16.6]} 38. gxh5 {[%clk 0:00:13.1]}
38... Ke6 {[%clk 0:00:17.5]} 39. Bh6 {[%clk 0:00:11.7]} 39... Kf5 {[%clk
0:00:17.7]} 40. Be3 {[%clk 0:00:11.1]} 40... Ke5 {[%clk 0:00:17]} 41. Bd4+
{[%clk 0:00:10.7]} 41... Ke6 {[%clk 0:00:16.3]} 42. Be3 {[%clk 0:00:10.4]} 42...
f5 {[%clk 0:00:16.6]} 43. Bd4 {[%clk 0:00:10.3]} 43... Kd5 {[%clk 0:00:17.1]}
44. Bg7 {[%clk 0:00:09.9]} 44... b4 {[%clk 0:00:16.9]} 45. h6 {[%clk 0:00:05.8]}
45... Bxc3+ {[%clk 0:00:16.9]} 46. Kd1 {[%clk 0:00:01.8]} 46... Bd4 {[%clk
0:00:17.1]} 47. Kc1 {[%clk 0:00:01.4]} 47... c3 {[%clk 0:00:17.3]} 0-1

[Event "*** Titled Tuesday Blitz"]
[Site "Chess.com"]
[Date "2020.05.19"]
[Round "5"]
[White "Quaternitychess"]
[Black "MrTattaglia"]
[Result "0-1"]
[WhiteElo "2794"]
[BlackElo "3033"]
[TimeControl "180+1"]
[EndTime "12:57:31 PDT"]
[Termination "MrTattaglia won by checkmate"]

1. e4 {[%clk 0:02:57]} 1... e5 {[%clk 0:02:59.2]} 2. Nf3 {[%clk 0:02:57]} 2...
Nc6 {[%clk 0:02:59.6]} 3. d4 {[%clk 0:02:57.6]} 3... exd4 {[%clk 0:02:58.5]} 4.
Nxd4 {[%clk 0:02:58.5]} 4... Nf6 {[%clk 0:02:58.4]} 5. Nxc6 {[%clk 0:02:59]}
5... bxc6 {[%clk 0:02:58.8]} 6. e5 {[%clk 0:02:59.5]} 6... Qe7 {[%clk 0:02:59]}
7. Qe2 {[%clk 0:03:00]} 7... Nd5 {[%clk 0:02:59.5]} 8. h4 {[%clk 0:03:00.6]}
8... Qe6 {[%clk 0:02:58.5]} 9. Nd2 {[%clk 0:02:59.5]} 9... a5 {[%clk 0:02:55.2]}
10. Nf3 {[%clk 0:02:47]} 10... Ba6 {[%clk 0:02:51.4]} 11. Qd1 {[%clk 0:02:40.7]}
11... Bxf1 {[%clk 0:02:50.3]} 12. Kxf1 {[%clk 0:02:41.6]} 12... h6 {[%clk
0:02:47.4]} 13. c4 {[%clk 0:02:33.6]} 13... Nb6 {[%clk 0:02:46.7]} 14. b3 {[%clk
0:02:33.4]} 14... a4 {[%clk 0:02:46.4]} 15. Bb2 {[%clk 0:02:32.7]} 15... Bc5
{[%clk 0:02:43.6]} 16. g3 {[%clk 0:02:31.5]} 16... O-O {[%clk 0:02:41]} 17. Kg2
{[%clk 0:02:31.1]} 17... Rfb8 {[%clk 0:02:32.7]} 18. Qc2 {[%clk 0:02:26.7]}
18... Nc8 {[%clk 0:02:21.3]} 19. Rad1 {[%clk 0:01:51.2]} 19... axb3 {[%clk
0:02:16.5]} 20. axb3 {[%clk 0:01:50.7]} 20... Ne7 {[%clk 0:02:17.1]} 21. Rd3
{[%clk 0:01:50.5]} 21... Re8 {[%clk 0:01:35.7]} 22. Rhd1 {[%clk 0:01:49.8]}
22... d6 {[%clk 0:01:35.8]} 23. exd6 {[%clk 0:01:43.2]} 23... cxd6 {[%clk
0:01:36.7]} 24. Re1 {[%clk 0:01:40.9]} 24... Qg6 {[%clk 0:01:31.4]} 25. Qc3
{[%clk 0:01:07.7]} 25... Nf5 {[%clk 0:01:18.9]} 26. Rdd1 {[%clk 0:01:07.5]}
26... Bxf2 {[%clk 0:00:47.7]} 27. Kxf2 {[%clk 0:01:07.1]} 27... Qxg3+ {[%clk
0:00:47.6]} 28. Kf1 {[%clk 0:01:07.7]} 28... Qh3+ {[%clk 0:00:31.2]} 29. Kf2
{[%clk 0:01:07.9]} 29... Qg3+ {[%clk 0:00:31.3]} 30. Kf1 {[%clk 0:01:08.3]}
30... Re6 {[%clk 0:00:30.3]} 31. Rxe6 {[%clk 0:01:00.6]} 31... fxe6 {[%clk
0:00:31.2]} 32. Rd2 {[%clk 0:00:38.1]} 32... Rf8 {[%clk 0:00:24.1]} 33. Rf2
{[%clk 0:00:35.9]} 33... e5 {[%clk 0:00:21.7]} 34. c5 {[%clk 0:00:18.1]} 34...
Nd4 {[%clk 0:00:15.5]} 35. cxd6 {[%clk 0:00:17.1]} 35... Nxf3 {[%clk 0:00:15.8]}
36. Ke2 {[%clk 0:00:09.1]} 36... Nd4+ {[%clk 0:00:14.2]} 37. Kd1 {[%clk
0:00:09.1]} 37... Qxf2 {[%clk 0:00:13.4]} 38. Qc4+ {[%clk 0:00:09.2]} 38... Kh7
{[%clk 0:00:11.7]} 39. Bxd4 {[%clk 0:00:10.1]} 39... exd4 {[%clk 0:00:11.2]} 40.
d7 {[%clk 0:00:11]} 40... Qf3+ {[%clk 0:00:09.9]} 41. Kc2 {[%clk 0:00:11.9]}
41... Qd5 {[%clk 0:00:09.1]} 42. Kb2 {[%clk 0:00:12.8]} 42... Qxc4 {[%clk
0:00:09]} 43. bxc4 {[%clk 0:00:13.7]} 43... Rd8 {[%clk 0:00:09.5]} 44. Kb3
{[%clk 0:00:14.6]} 44... Rxd7 {[%clk 0:00:10.4]} 45. c5 {[%clk 0:00:15.2]} 45...
d3 {[%clk 0:00:10.2]} 46. Kb4 {[%clk 0:00:16.1]} 46... d2 {[%clk 0:00:10.5]} 47.
Ka5 {[%clk 0:00:17]} 47... Rb7 {[%clk 0:00:09.7]} 48. Ka6 {[%clk 0:00:16.7]}
48... Rb5 {[%clk 0:00:09.7]} 49. Ka7 {[%clk 0:00:17.6]} 49... d1=Q {[%clk
0:00:09.4]} 50. Ka6 {[%clk 0:00:18.5]} 50... Qa1# {[%clk 0:00:10.3]} 0-1

[Event "*** Titled Tuesday Blitz"]
[Site "Chess.com"]
[Date "2020.05.19"]
[Round "5"]
[White "OparinGrigoriy"]
[Black "DaggiGretarsson"]
[Result "1-0"]
[WhiteElo "2904"]
[BlackElo "2613"]
[TimeControl "180+1"]
[EndTime "12:57:32 PDT"]
[Termination "OparinGrigoriy won on time"]

1. d4 {[%clk 0:02:49.5]} 1... g6 {[%clk 0:02:59.5]} 2. e4 {[%clk 0:02:49]} 2...
Bg7 {[%clk 0:02:59.6]} 3. Nf3 {[%clk 0:02:49.4]} 3... d6 {[%clk 0:02:59.6]} 4.
Bd3 {[%clk 0:02:49.9]} 4... Nf6 {[%clk 0:02:55.3]} 5. O-O {[%clk 0:02:50.2]}
5... O-O {[%clk 0:02:54.1]} 6. Re1 {[%clk 0:02:48.6]} 6... c5 {[%clk 0:02:42.3]}
7. dxc5 {[%clk 0:02:40.6]} 7... dxc5 {[%clk 0:02:41.6]} 8. e5 {[%clk 0:02:40.5]}
8... Nd5 {[%clk 0:02:35.8]} 9. a3 {[%clk 0:02:38.9]} 9... Nc6 {[%clk 0:02:23.2]}
10. h3 {[%clk 0:02:37.9]} 10... h6 {[%clk 0:02:10]} 11. Qe2 {[%clk 0:02:29.8]}
11... Qc7 {[%clk 0:01:59.8]} 12. c4 {[%clk 0:02:27.9]} 12... Nb6 {[%clk
0:01:58.4]} 13. Nc3 {[%clk 0:02:28.1]} 13... Be6 {[%clk 0:01:55.5]} 14. Bf4
{[%clk 0:02:20.8]} 14... Rad8 {[%clk 0:01:39.8]} 15. Rad1 {[%clk 0:02:17.3]}
15... Rd7 {[%clk 0:01:38.1]} 16. b3 {[%clk 0:02:02.1]} 16... Rfd8 {[%clk
0:01:27.4]} 17. Bg3 {[%clk 0:01:54.7]} 17... a6 {[%clk 0:01:24.2]} 18. Ne4
{[%clk 0:01:44.4]} 18... Nd4 {[%clk 0:01:14.9]} 19. Nxd4 {[%clk 0:01:40.9]}
19... Rxd4 {[%clk 0:01:10.4]} 20. Nc3 {[%clk 0:01:16.2]} 20... R8d7 {[%clk
0:01:02.3]} 21. Bc2 {[%clk 0:01:14.1]} 21... Qd8 {[%clk 0:01:01.4]} 22. Rxd4
{[%clk 0:01:14.5]} 22... Rxd4 {[%clk 0:01:00.7]} 23. Rd1 {[%clk 0:01:10.1]}
23... Nd7 {[%clk 0:00:58.4]} 24. f4 {[%clk 0:00:52.4]} 24... Qa5 {[%clk
0:00:55.4]} 25. Nb1 {[%clk 0:00:51.4]} 25... Rxd1+ {[%clk 0:00:47.1]} 26. Qxd1
{[%clk 0:00:49.1]} 26... b5 {[%clk 0:00:45.3]} 27. cxb5 {[%clk 0:00:47.3]} 27...
axb5 {[%clk 0:00:45.2]} 28. Bf2 {[%clk 0:00:45.6]} 28... c4 {[%clk 0:00:24.4]}
29. b4 {[%clk 0:00:35.5]} 29... Qc7 {[%clk 0:00:22]} 30. Nc3 {[%clk 0:00:34.1]}
30... Qb8 {[%clk 0:00:20.9]} 31. Qd4 {[%clk 0:00:32.1]} 31... g5 {[%clk
0:00:19.8]} 32. g3 {[%clk 0:00:29.5]} 32... Bxh3 {[%clk 0:00:17.3]} 33. Qa7
{[%clk 0:00:24.4]} 33... Qd8 {[%clk 0:00:15]} 34. Nxb5 {[%clk 0:00:21.3]} 34...
Nxe5 {[%clk 0:00:14.2]} 35. Kh2 {[%clk 0:00:06.5]} 35... Qd2 {[%clk 0:00:04]}
36. fxe5 {[%clk 0:00:03.2]} 36... Qxc2 {[%clk 0:00:03.7]} 37. Kxh3 {[%clk
0:00:02.8]} 37... Bxe5 {[%clk 0:00:03.6]} 38. Qe3 {[%clk 0:00:02.7]} 38... f6
{[%clk 0:00:03]} 39. Kg2 {[%clk 0:00:02.9]} 39... h5 {[%clk 0:00:02.7]} 40. Qf3
{[%clk 0:00:01.9]} 40... g4 {[%clk 0:00:02.1]} 41. Qd5+ {[%clk 0:00:02]} 41...
Kg7 {[%clk 0:00:02.1]} 42. Nd4 {[%clk 0:00:02.7]} 1-0

[Event "*** Titled Tuesday Blitz"]
[Site "Chess.com"]
[Date "2020.05.19"]
[Round "5"]
[White "Lali-Rustavi"]
[Black "CalinGheorghiu"]
[Result "0-1"]
[WhiteElo "1884"]
[BlackElo "2283"]
[TimeControl "180+1"]
[EndTime "12:57:33 PDT"]
[Termination "CalinGheorghiu won by checkmate"]

1. e4 {[%clk 0:03:00.2]} 1... c5 {[%clk 0:02:57.4]} 2. Nc3 {[%clk 0:02:59.6]}
2... d6 {[%clk 0:02:57]} 3. f4 {[%clk 0:02:59.7]} 3... g6 {[%clk 0:02:53.5]} 4.
Nf3 {[%clk 0:02:59.8]} 4... Bg7 {[%clk 0:02:47.9]} 5. Bc4 {[%clk 0:02:59.9]}
5... Nc6 {[%clk 0:02:41.3]} 6. f5 {[%clk 0:02:59.2]} 6... e6 {[%clk 0:02:33.4]}
7. fxe6 {[%clk 0:02:55.6]} 7... fxe6 {[%clk 0:02:32.8]} 8. O-O {[%clk
0:02:55.4]} 8... Nf6 {[%clk 0:02:31.5]} 9. d3 {[%clk 0:02:55.4]} 9... O-O {[%clk
0:02:28.1]} 10. Bg5 {[%clk 0:02:51]} 10... h6 {[%clk 0:02:24.6]} 11. Bh4 {[%clk
0:02:50.2]} 11... Ne5 {[%clk 0:02:14.3]} 12. Nxe5 {[%clk 0:02:44.9]} 12... dxe5
{[%clk 0:02:14]} 13. Qe2 {[%clk 0:02:29.2]} 13... a6 {[%clk 0:02:06.2]} 14. a4
{[%clk 0:02:27.2]} 14... Rb8 {[%clk 0:02:01.9]} 15. a5 {[%clk 0:02:22.2]} 15...
Qd6 {[%clk 0:01:36.8]} 16. Bxf6 {[%clk 0:01:50.8]} 16... Bxf6 {[%clk 0:01:35.5]}
17. Qg4 {[%clk 0:01:50.6]} 17... Kg7 {[%clk 0:01:25]} 18. Rf3 {[%clk 0:01:49.1]}
18... Bd7 {[%clk 0:01:22.2]} 19. h4 {[%clk 0:01:46.5]} 19... h5 {[%clk 0:01:12]}
20. Qg3 {[%clk 0:01:42.8]} 20... b5 {[%clk 0:01:07.5]} 21. axb6 {[%clk
0:01:42.3]} 21... Rxb6 {[%clk 0:01:06.9]} 22. Bb3 {[%clk 0:01:39.9]} 22... Bb5
{[%clk 0:00:22.9]} 23. Nd1 {[%clk 0:01:36.7]} 23... Qd4+ {[%clk 0:00:19.6]} 24.
Kh1 {[%clk 0:01:24.6]} 24... c4 {[%clk 0:00:20.5]} 25. c3 {[%clk 0:01:21.9]}
25... Qd7 {[%clk 0:00:18.7]} 26. dxc4 {[%clk 0:01:18.6]} 26... Bc6 {[%clk
0:00:19.1]} 27. Bc2 {[%clk 0:01:18.2]} 27... Qb7 {[%clk 0:00:18.3]} 28. b4
{[%clk 0:01:17.3]} 28... Bxe4 {[%clk 0:00:15.7]} 29. Bxe4 {[%clk 0:01:07.4]}
29... Qxe4 {[%clk 0:00:15.2]} 30. Ne3 {[%clk 0:01:03.8]} 30... Bxh4 {[%clk
0:00:15.3]} 31. Qh3 {[%clk 0:00:58.8]} 31... Rxf3 {[%clk 0:00:15.2]} 32. gxf3
{[%clk 0:00:53.7]} 32... Qxe3 {[%clk 0:00:15.1]} 33. Qxh4 {[%clk 0:00:54.1]}
33... Qxf3+ {[%clk 0:00:15.4]} 34. Kh2 {[%clk 0:00:54.4]} 34... Qf4+ {[%clk
0:00:14.2]} 35. Qxf4 {[%clk 0:00:53.5]} 35... exf4 {[%clk 0:00:15.1]} 36. c5
{[%clk 0:00:53.5]} 36... Rc6 {[%clk 0:00:14.5]} 37. Rd1 {[%clk 0:00:52.6]} 37...
Kf6 {[%clk 0:00:13.5]} 38. Kg2 {[%clk 0:00:52.5]} 38... g5 {[%clk 0:00:13.5]}
39. Rd6 {[%clk 0:00:48.2]} 39... Rxd6 {[%clk 0:00:12.8]} 40. cxd6 {[%clk
0:00:47.6]} 40... e5 {[%clk 0:00:13.3]} 41. c4 {[%clk 0:00:47.7]} 41... Ke6
{[%clk 0:00:13.9]} 42. c5 {[%clk 0:00:48.1]} 42... e4 {[%clk 0:00:14.3]} 43. Kf2
{[%clk 0:00:46.3]} 43... g4 {[%clk 0:00:14.5]} 44. Kg2 {[%clk 0:00:46.5]} 44...
h4 {[%clk 0:00:15]} 45. Kf2 {[%clk 0:00:46.7]} 45... h3 {[%clk 0:00:15.5]} 46.
Kg1 {[%clk 0:00:46.8]} 46... g3 {[%clk 0:00:15.9]} 47. Kh1 {[%clk 0:00:47]}
47... f3 {[%clk 0:00:16.3]} 48. d7 {[%clk 0:00:45.4]} 48... Kxd7 {[%clk
0:00:16.1]} 49. c6+ {[%clk 0:00:45.7]} 49... Kxc6 {[%clk 0:00:16.5]} 50. b5+
{[%clk 0:00:44.3]} 50... Kxb5 {[%clk 0:00:17.1]} 51. Kg1 {[%clk 0:00:44.5]}
51... e3 {[%clk 0:00:17.7]} 52. Kh1 {[%clk 0:00:44.6]} 52... e2 {[%clk
0:00:17.8]} 53. Kg1 {[%clk 0:00:45]} 53... e1=Q# {[%clk 0:00:18.7]} 0-1

[Event "*** Titled Tuesday Blitz"]
[Site "Chess.com"]
[Date "2020.05.19"]
[Round "5"]
[White "PauloFanha"]
[Black "fridaywins"]
[Result "0-1"]
[WhiteElo "1954"]
[BlackElo "2244"]
[TimeControl "180+1"]
[EndTime "12:57:33 PDT"]
[Termination "fridaywins won on time"]

1. e4 {[%clk 0:02:59.8]} 1... e5 {[%clk 0:02:59.6]} 2. Bc4 {[%clk 0:02:54.4]}
2... Nf6 {[%clk 0:02:57.4]} 3. d4 {[%clk 0:02:53.2]} 3... Nc6 {[%clk 0:02:51.3]}
4. Nf3 {[%clk 0:02:50.7]} 4... Nxe4 {[%clk 0:02:39.1]} 5. dxe5 {[%clk
0:02:39.2]} 5... Nc5 {[%clk 0:01:59.6]} 6. O-O {[%clk 0:02:32.1]} 6... Ne6
{[%clk 0:01:59]} 7. Nc3 {[%clk 0:02:27.8]} 7... Be7 {[%clk 0:01:58.6]} 8. Re1
{[%clk 0:02:19.6]} 8... O-O {[%clk 0:01:58.3]} 9. Be3 {[%clk 0:02:14.2]} 9... f5
{[%clk 0:01:29.5]} 10. exf6 {[%clk 0:02:04.2]} 10... Bxf6 {[%clk 0:01:29.1]} 11.
Rb1 {[%clk 0:01:52.9]} 11... Kh8 {[%clk 0:01:26.2]} 12. Nd5 {[%clk 0:01:45.2]}
12... Ne5 {[%clk 0:01:12.6]} 13. Nxf6 {[%clk 0:01:40.2]} 13... Qxf6 {[%clk
0:01:11.7]} 14. Nxe5 {[%clk 0:01:35.7]} 14... Qxe5 {[%clk 0:01:11.1]} 15. Bxe6
{[%clk 0:01:31.8]} 15... dxe6 {[%clk 0:01:04]} 16. a3 {[%clk 0:01:11.2]} 16...
b6 {[%clk 0:01:02]} 17. Bxb6 {[%clk 0:01:07]} 17... Qf4 {[%clk 0:00:47.1]} 18.
Bc5 {[%clk 0:00:59.5]} 18... Bb7 {[%clk 0:00:35.3]} 19. Bxf8 {[%clk 0:00:55.8]}
19... Rxf8 {[%clk 0:00:35.4]} 20. Qe2 {[%clk 0:00:52.7]} 20... h5 {[%clk
0:00:34.4]} 21. Qxh5+ {[%clk 0:00:47.5]} 21... Kg8 {[%clk 0:00:33.7]} 22. Re2
{[%clk 0:00:44.1]} 22... Ba6 {[%clk 0:00:29.2]} 23. Rbe1 {[%clk 0:00:35.5]}
23... Bxe2 {[%clk 0:00:28.9]} 24. Qxe2 {[%clk 0:00:34.6]} 24... Rf6 {[%clk
0:00:27.7]} 25. Qe3 {[%clk 0:00:31.5]} 25... Qc4 {[%clk 0:00:23.4]} 26. c3
{[%clk 0:00:25.8]} 26... a5 {[%clk 0:00:22.7]} 27. Qd4 {[%clk 0:00:20.3]} 27...
Qb3 {[%clk 0:00:20.3]} 28. Qd8+ {[%clk 0:00:17.3]} 28... Kh7 {[%clk 0:00:19.5]}
29. Qxc7 {[%clk 0:00:17]} 29... Qxb2 {[%clk 0:00:19.6]} 30. Qg3 {[%clk
0:00:15.2]} 30... Qd2 {[%clk 0:00:19.4]} 31. f3 {[%clk 0:00:13.3]} 31... Qd3
{[%clk 0:00:18.2]} 32. Qh3+ {[%clk 0:00:11.4]} 32... Kg6 {[%clk 0:00:17.5]} 33.
Rxe6 {[%clk 0:00:09.9]} 33... Qd1+ {[%clk 0:00:17]} 34. Kf2 {[%clk 0:00:09.4]}
34... Qd2+ {[%clk 0:00:15.4]} 35. Kg3 {[%clk 0:00:07.2]} 35... Qg5+ {[%clk
0:00:14.5]} 36. Kf2 {[%clk 0:00:04.7]} 36... Qd2+ {[%clk 0:00:14.8]} 37. Kg3
{[%clk 0:00:04]} 37... Qxc3 {[%clk 0:00:12.8]} 38. Qg4+ {[%clk 0:00:01.5]} 38...
Kf7 {[%clk 0:00:12.5]} 0-1

[Event "*** Titled Tuesday Blitz"]
[Site "Chess.com"]
[Date "2020.05.19"]
[Round "5"]
[White "Sebastian"]
[Black "WildBizon"]
[Result "0-1"]
[WhiteElo "2887"]
[BlackElo "2634"]
[TimeControl "180+1"]
[EndTime "12:57:36 PDT"]
[Termination "WildBizon won by resignation"]

1. e4 {[%clk 0:03:00.9]} 1... c6 {[%clk 0:02:41.5]} 2. d4 {[%clk 0:03:00.8]}
2... d5 {[%clk 0:02:41.1]} 3. e5 {[%clk 0:03:01.5]} 3... Bf5 {[%clk 0:02:38.5]}
4. Nf3 {[%clk 0:03:01.4]} 4... e6 {[%clk 0:02:38.5]} 5. Be2 {[%clk 0:03:01.5]}
5... Ne7 {[%clk 0:02:38.6]} 6. c3 {[%clk 0:03:01.3]} 6... h6 {[%clk 0:02:38.6]}
7. O-O {[%clk 0:03:00.4]} 7... Bg6 {[%clk 0:02:33.5]} 8. Nbd2 {[%clk 0:02:59.5]}
8... Nf5 {[%clk 0:02:32.7]} 9. g4 {[%clk 0:02:43.3]} 9... Nh4 {[%clk 0:02:28.6]}
10. Nxh4 {[%clk 0:02:43.2]} 10... Qxh4 {[%clk 0:02:28.7]} 11. f4 {[%clk
0:02:44]} 11... h5 {[%clk 0:01:51.3]} 12. g5 {[%clk 0:02:24.4]} 12... f6 {[%clk
0:01:51.1]} 13. Nf3 {[%clk 0:01:34.7]} 13... Qg4+ {[%clk 0:01:38.3]} 14. Kh1
{[%clk 0:01:33.9]} 14... Be4 {[%clk 0:01:17.5]} 15. Bd3 {[%clk 0:01:12.2]} 15...
f5 {[%clk 0:01:04.3]} 16. Be2 {[%clk 0:01:01.5]} 16... h4 {[%clk 0:01:04.2]} 17.
Rg1 {[%clk 0:01:01.1]} 17... Qh3 {[%clk 0:00:53.8]} 18. Be3 {[%clk 0:00:44.5]}
18... Nd7 {[%clk 0:00:49.7]} 19. Qf1 {[%clk 0:00:17.2]} 19... Qxf1 {[%clk
0:00:46.9]} 20. Rgxf1 {[%clk 0:00:17.6]} 20... h3 {[%clk 0:00:35.4]} 21. Kg1
{[%clk 0:00:17.2]} 21... Be7 {[%clk 0:00:33.2]} 22. b4 {[%clk 0:00:12.3]} 22...
a5 {[%clk 0:00:28.3]} 23. bxa5 {[%clk 0:00:06.5]} 23... Rxa5 {[%clk 0:00:26.1]}
24. a4 {[%clk 0:00:05.9]} 24... Kf7 {[%clk 0:00:24.8]} 25. Nd2 {[%clk
0:00:05.8]} 25... Rha8 {[%clk 0:00:23.3]} 26. Nxe4 {[%clk 0:00:05.6]} 26... dxe4
{[%clk 0:00:20.4]} 27. Rfb1 {[%clk 0:00:06.2]} 27... b5 {[%clk 0:00:19.6]} 28.
Bd1 {[%clk 0:00:05.6]} 28... Nb6 {[%clk 0:00:18.9]} 29. Kf2 {[%clk 0:00:04]}
29... Nxa4 {[%clk 0:00:19]} 30. Bd2 {[%clk 0:00:03.6]} 30... Nb6 {[%clk
0:00:19.4]} 31. Rxa5 {[%clk 0:00:02.3]} 31... Rxa5 {[%clk 0:00:19.6]} 32. Be2
{[%clk 0:00:02.6]} 32... Ra2 {[%clk 0:00:19.4]} 33. Ke1 {[%clk 0:00:02.4]} 33...
Nd5 {[%clk 0:00:17.6]} 34. Rb3 {[%clk 0:00:02.5]} 34... e3 {[%clk 0:00:17]} 35.
Bc1 {[%clk 0:00:02.9]} 35... Rc2 {[%clk 0:00:17.1]} 36. Kd1 {[%clk 0:00:02.7]}
36... Rxc3 {[%clk 0:00:17.5]} 37. Rxc3 {[%clk 0:00:02.5]} 37... Nxc3+ {[%clk
0:00:17.8]} 38. Ke1 {[%clk 0:00:03.4]} 38... Nxe2 {[%clk 0:00:16.2]} 39. Kxe2
{[%clk 0:00:04.3]} 39... c5 {[%clk 0:00:16.9]} 40. Bxe3 {[%clk 0:00:03.3]} 40...
c4 {[%clk 0:00:17.1]} 41. Bd2 {[%clk 0:00:03.2]} 41... b4 {[%clk 0:00:17.2]} 42.
Kf3 {[%clk 0:00:01.9]} 42... c3 {[%clk 0:00:16.7]} 43. Be1 {[%clk 0:00:01.9]}
43... c2 {[%clk 0:00:13.8]} 44. Bd2 {[%clk 0:00:01.7]} 44... b3 {[%clk
0:00:13.9]} 45. Bc1 {[%clk 0:00:02.3]} 45... Bb4 {[%clk 0:00:14]} 46. Ke2 {[%clk
0:00:02.1]} 46... Bc3 {[%clk 0:00:14.1]} 47. Kd3 {[%clk 0:00:02.7]} 47... b2
{[%clk 0:00:14.5]} 48. Kxc2 {[%clk 0:00:03.2]} 48... bxc1=Q+ {[%clk 0:00:14.3]}
49. Kxc1 {[%clk 0:00:03.7]} 49... Bxd4 {[%clk 0:00:14.8]} 0-1

[Event "*** Titled Tuesday Blitz"]
[Site "Chess.com"]
[Date "2020.05.19"]
[Round "5"]
[White "Hangar-18"]
[Black "Quiet_Desperation"]
[Result "1-0"]
[WhiteElo "2314"]
[BlackElo "2074"]
[TimeControl "180+1"]
[EndTime "12:57:36 PDT"]
[Termination "Hangar-18 won on time"]

1. b3 {[%clk 0:02:58.6]} 1... d6 {[%clk 0:02:57.3]} 2. Bb2 {[%clk 0:02:59.5]}
2... Nc6 {[%clk 0:02:53.3]} 3. e3 {[%clk 0:03:00.4]} 3... e5 {[%clk 0:02:52.8]}
4. c4 {[%clk 0:02:58.7]} 4... Nf6 {[%clk 0:02:51]} 5. d4 {[%clk 0:02:53.4]} 5...
exd4 {[%clk 0:02:50.9]} 6. exd4 {[%clk 0:02:53.3]} 6... d5 {[%clk 0:02:51.4]} 7.
Nd2 {[%clk 0:02:50.6]} 7... Bb4 {[%clk 0:02:46.5]} 8. Nf3 {[%clk 0:02:50.6]}
8... O-O {[%clk 0:02:46]} 9. Be2 {[%clk 0:02:51.1]} 9... Re8 {[%clk 0:02:45.7]}
10. O-O {[%clk 0:02:51.5]} 10... Bg4 {[%clk 0:02:43.9]} 11. c5 {[%clk
0:02:44.3]} 11... Bxd2 {[%clk 0:02:34.2]} 12. Qxd2 {[%clk 0:02:45.2]} 12... Ne4
{[%clk 0:02:33.3]} 13. Qf4 {[%clk 0:02:45.4]} 13... Bh5 {[%clk 0:02:27.2]} 14.
Rfe1 {[%clk 0:02:25.3]} 14... Nb4 {[%clk 0:02:25.7]} 15. Ne5 {[%clk 0:02:15]}
15... Bg6 {[%clk 0:02:12.5]} 16. f3 {[%clk 0:01:56.4]} 16... Nf6 {[%clk
0:01:59.3]} 17. Nxg6 {[%clk 0:01:53.3]} 17... hxg6 {[%clk 0:01:58.7]} 18. Qd2
{[%clk 0:01:53.9]} 18... Nc6 {[%clk 0:01:53.8]} 19. b4 {[%clk 0:01:51.1]} 19...
a6 {[%clk 0:01:53.5]} 20. a4 {[%clk 0:01:51.3]} 20... Ne7 {[%clk 0:01:45.7]} 21.
b5 {[%clk 0:01:47.7]} 21... axb5 {[%clk 0:01:45.4]} 22. axb5 {[%clk 0:01:48.6]}
22... Qd7 {[%clk 0:01:43.3]} 23. Bf1 {[%clk 0:01:40.4]} 23... Nf5 {[%clk
0:01:33.8]} 24. Bc3 {[%clk 0:01:32.9]} 24... Kh7 {[%clk 0:01:30]} 25. Qf4 {[%clk
0:01:19.3]} 25... Rxa1 {[%clk 0:01:19.9]} 26. Rxa1 {[%clk 0:01:15.9]} 26... Nh5
{[%clk 0:01:06]} 27. Qd2 {[%clk 0:01:12.8]} 27... Ne3 {[%clk 0:01:01.9]} 28. Rb1
{[%clk 0:00:31.7]} 28... Nf4 {[%clk 0:00:49.1]} 29. Qf2 {[%clk 0:00:31.7]} 29...
Nxf1 {[%clk 0:00:46.8]} 30. Qh4+ {[%clk 0:00:32.2]} 30... Kg8 {[%clk 0:00:40.9]}
31. Qxf4 {[%clk 0:00:31.4]} 31... Ne3 {[%clk 0:00:36.4]} 32. Re1 {[%clk
0:00:29.4]} 32... Nf5 {[%clk 0:00:34]} 33. g4 {[%clk 0:00:21.3]} 33... Rxe1+
{[%clk 0:00:33.5]} 34. Bxe1 {[%clk 0:00:22.2]} 34... Qe7 {[%clk 0:00:25.6]} 35.
Bf2 {[%clk 0:00:21]} 35... Nh6 {[%clk 0:00:24.8]} 36. b6 {[%clk 0:00:20.8]}
36... cxb6 {[%clk 0:00:24.3]} 37. cxb6 {[%clk 0:00:21.7]} 37... Kh7 {[%clk
0:00:21.7]} 38. Qc7 {[%clk 0:00:19.8]} 38... Qe2 {[%clk 0:00:18.6]} 39. Kg2
{[%clk 0:00:20.2]} 39... g5 {[%clk 0:00:08.9]} 40. h3 {[%clk 0:00:19]} 40... Qa6
{[%clk 0:00:07.2]} 41. Qd6 {[%clk 0:00:17]} 41... Qc4 {[%clk 0:00:04]} 42. Qe7
{[%clk 0:00:13.7]} 42... Ng8 {[%clk 0:00:02.1]} 43. Qxg5 {[%clk 0:00:12.5]}
43... Nf6 {[%clk 0:00:02.4]} 44. Qf5+ {[%clk 0:00:12.4]} 44... Kg8 {[%clk
0:00:01.9]} 45. g5 {[%clk 0:00:11.7]} 1-0